bitfinex-derivatives/quotes_BTCF0:USTF0_20241125
["timestamp","ask_amount","ask_price","bid_price","bid_amount"]
[1732576344778,0.00853518,94386.0,94379.0,0.06080791]
[1732576344976,0.00853518,94386.0,94379.0,0.0690899]
[1732576345175,0.00853518,94386.0,94379.0,0.06080791]
[1732576346479,0.05298,94381.0,94379.0,0.002]
[1732576346677,0.05298,94381.0,94379.0,0.004]
[1732576346882,0.00853518,94386.0,94379.0,0.004]
[1732576347270,0.05298,94381.0,94379.0,0.004]
[1732576347578,0.052979,94382.0,94379.0,0.05698]
[1732576347769,0.05298,94381.0,94379.0,0.004]
[1732576349584,0.00853518,94386.0,94379.0,0.004]
[1732576349770,0.06151218,94386.0,94379.0,0.004]
[1732576350484,0.052977,94385.0,94379.0,0.004]
[1732576350675,0.00853518,94386.0,94379.0,0.004]
[1732576351876,0.052978,94383.0,94379.0,0.004]
[1732576352277,0.00853518,94386.0,94379.0,0.004]
[1732576354688,0.052978,94383.0,94379.0,0.004]
[1732576355186,0.00853518,94386.0,94379.0,0.00731285]
[1732576355481,0.00853518,94386.0,94379.0,0.004]
[1732576355693,0.00853518,94386.0,94379.0,0.02654914]
[1732576358591,0.00853518,94386.0,94379.0,0.02986181]
[1732576359179,0.00853518,94386.0,94379.0,0.02654914]
[1732576359888,0.00853518,94386.0,94379.0,0.02986181]
[1732576360693,0.00853518,94386.0,94379.0,0.02654914]
[1732576360990,0.052984,94373.0,94358.0,0.30125567]
[1732576361190,0.3608,94372.0,94366.0,0.052988]
[1732576361379,0.67868,94372.0,94356.0,0.24826367]
[1732576361584,0.3608,94372.0,94356.0,0.24826367]
[1732576361884,0.3608,94372.0,94370.0,0.052986]
[1732576362187,0.00012872,94380.0,94370.0,0.052986]
[1732576362388,0.00012872,94380.0,94379.0,0.05298]
[1732576363689,0.00012872,94380.0,94379.0,0.05498]
[1732576364284,0.00012872,94380.0,94379.0,0.05698]
[1732576364482,0.00158775,94380.0,94379.0,0.05698]
[1732576364684,0.00158775,94380.0,94379.0,0.05498]
[1732576364884,0.00158775,94380.0,94379.0,0.05598]
[1732576365495,0.00158775,94380.0,94379.0,0.05398]
[1732576365695,0.09505628,94398.0,94380.0,0.05298]
[1732576365996,0.09505628,94398.0,94381.0,0.19164]
[1732576366193,0.052975,94389.0,94387.0,0.052976]
[1732576366586,0.052975,94389.0,94381.0,0.19164]
[1732576366587,0.052978,94385.0,94384.0,0.052977]
[1732576366782,0.18956214,94395.0,94384.0,0.19164]
[1732576366783,0.09505628,94388.0,94384.0,0.19164]
[1732576366993,0.052977,94385.0,94384.0,0.19164]
[1732576367392,0.052978,94384.0,94383.0,0.052978]
[1732576367994,0.09505628,94384.0,94383.0,0.052978]
[1732576368294,0.18776214,94389.0,94383.0,0.052978]
[1732576368295,0.09505628,94385.0,94383.0,0.052978]
[1732576368491,0.09505628,94386.0,94378.0,0.19164]
[1732576368687,0.14803328,94386.0,94384.0,0.052977]
[1732576368889,0.052977,94386.0,94384.0,0.052977]
[1732576369194,0.12616214,94385.0,94384.0,0.053977]
[1732576369500,0.052977,94386.0,94384.0,0.053977]
[1732576370293,0.09516792,94388.0,94387.0,0.052976]
[1732576371794,0.002,94388.0,94387.0,0.052976]
[1732576372096,0.052977,94385.0,94384.0,0.001]
[1732576372298,0.052977,94385.0,94373.0,0.24826367]
[1732576372299,0.052983,94374.0,94373.0,0.24826367]
[1732576372502,0.052987,94367.0,94359.0,0.36958017]
[1732576373502,0.370907,94367.0,94366.0,0.30808271]
[1732576373701,0.052987,94367.0,94366.0,0.31008271]
[1732576374400,0.371907,94367.0,94366.0,0.30808271]
[1732576374702,0.371907,94367.0,94359.0,0.36958017]
[1732576374703,0.052991,94360.0,94359.0,0.3178255]
[1732576375002,0.413791,94360.0,94359.0,0.3178255]
[1732576375192,0.731711,94360.0,94359.0,0.3178255]
[1732576375995,0.413791,94360.0,94359.0,0.3178255]
[1732576376395,0.413791,94360.0,94359.0,0.3188255]
[1732576376806,0.413791,94360.0,94359.0,0.3208255]
[1732576377395,0.052991,94360.0,94359.0,0.3208255]
[1732576377596,0.09509253,94365.0,94359.0,0.3208255]
[1732576377896,0.052989,94364.0,94360.0,0.113191]
[1732576378097,0.052989,94364.0,94360.0,0.0602]
[1732576378401,0.052989,94364.0,94361.0,0.05299]
[1732576378797,0.052989,94364.0,94362.0,0.0634]
[1732576379905,0.052989,94364.0,94362.0,0.0644]
[1732576380407,0.67872,94363.0,94362.0,0.002]
[1732576383812,0.3608,94363.0,94362.0,0.002]
[1732576384803,0.3608,94363.0,94362.0,0.127]
[1732576385004,0.00860774,94367.0,94362.0,0.127]
[1732576385303,0.3608,94372.0,94366.0,0.052988]
[1732576385607,0.2647,94372.0,94367.0,0.0626]
[1732576385801,0.2647,94372.0,94371.0,0.052985]
[1732576386410,0.2657,94372.0,94371.0,0.052985]
[1732576386799,0.2647,94372.0,94371.0,0.052985]
[1732576387011,0.320684,94372.0,94368.0,0.1912]
[1732576387406,0.052986,94370.0,94368.0,0.1912]
[1732576387916,0.2677,94372.0,94367.0,0.0626]
[1732576387917,0.052986,94368.0,94367.0,0.0626]
[1732576388213,0.052989,94363.0,94362.0,0.063]
[1732576388412,0.00165849,94368.0,94352.0,0.0608]
[1732576388616,0.00165849,94368.0,94352.0,0.1216]
[1732576388810,0.00165849,94368.0,94352.0,0.1793]
[1732576389007,0.052992,94359.0,94352.0,0.1793]
[1732576389410,0.00165849,94356.0,94352.0,0.1793]
[1732576389615,0.00228755,94356.0,94352.0,0.1813]
[1732576389816,0.00228755,94356.0,94352.0,0.1823]
[1732576390015,0.00228755,94356.0,94352.0,0.1803]
[1732576390518,0.00228755,94354.0,94352.0,0.1803]
[1732576390911,0.05528255,94354.0,94352.0,0.1803]
[1732576391618,0.00228755,94353.0,94352.0,0.1803]
[1732576392019,0.00228755,94353.0,94352.0,0.1793]
[1732576392215,0.00228755,94353.0,94352.0,0.1803]
[1732576392820,0.00228755,94353.0,94352.0,0.1793]
[1732576393824,0.00428755,94353.0,94352.0,0.1793]
[1732576394117,0.32224755,94353.0,94352.0,0.1216]
[1732576394321,0.32224755,94353.0,94333.0,0.053006]
[1732576394534,0.053005,94336.0,94333.0,0.053006]
[1732576395439,0.053005,94336.0,94333.0,0.054006]
[1732576395636,0.00228755,94335.0,94333.0,0.054006]
[1732576395831,0.05529255,94335.0,94333.0,0.056006]
[1732576396025,0.05529255,94335.0,94333.0,0.003]
[1732576396226,0.6788,94334.0,94299.0,0.3608]
[1732576396427,0.053017,94315.0,94303.0,0.0617]
[1732576396634,0.00228755,94309.0,94307.0,0.05302]
[1732576397333,0.00228755,94309.0,94308.0,0.1275]
[1732576398241,0.36308755,94309.0,94308.0,0.1275]
[1732576398539,0.3608,94309.0,94308.0,0.1275]
[1732576398832,0.36391683,94309.0,94308.0,0.1275]
[1732576399031,0.37319231,94309.0,94308.0,0.0275]
[1732576399232,0.053022,94304.0,94303.0,0.0617]
[1732576399838,0.05613883,94304.0,94303.0,0.0617]
[1732576401329,0.05613883,94304.0,94303.0,0.0637]
[1732576411044,0.053014,94319.0,94303.0,0.0637]
[1732576411245,0.09500592,94327.0,94310.0,0.3608]
[1732576411445,0.09500592,94327.0,94325.0,0.05301]
[1732576411639,0.053009,94328.0,94326.0,0.481]
[1732576412231,0.053009,94328.0,94326.0,0.1202]
[1732576412438,0.053018,94312.0,94308.0,0.059]
[1732576412645,0.002,94324.0,94308.0,0.1202]
[1732576412646,0.053019,94311.0,94308.0,0.1202]
[1732576413238,0.053019,94310.0,94308.0,0.1202]
[1732576413647,0.053019,94310.0,94308.0,0.0612]
[1732576414145,0.3608,94315.0,94294.0,0.0609]
[1732576414341,0.3608,94315.0,94280.0,0.3608]
[1732576414342,0.3608,94297.0,94281.0,0.061]
[1732576414536,0.3608,94305.0,94281.0,0.1222]
[1732576414741,0.3608,94305.0,94297.0,0.053026]
[1732576415045,0.053025,94300.0,94297.0,0.053026]
[1732576415257,0.053028,94294.0,94290.0,0.05303]
[1732576415449,0.3608,94305.0,94288.0,0.3608]
[1732576415746,0.053029,94293.0,94291.0,0.053029]
[1732576416140,0.36914944,94305.0,94288.0,0.3608]
[1732576416341,0.053025,94299.0,94294.0,0.053028]
[1732576416544,0.36914944,94305.0,94288.0,0.3608]
[1732576416849,0.36914944,94305.0,94297.0,0.001]
[1732576416850,0.053025,94300.0,94297.0,0.001]
[1732576417051,0.053025,94300.0,94297.0,0.003]
[1732576417246,0.36914944,94305.0,94297.0,0.003]
[1732576417448,0.053026,94298.0,94297.0,0.003]
[1732576417743,0.36914944,94305.0,94289.0,0.053031]
[1732576417945,0.36914944,94305.0,94290.0,0.05303]
[1732576417946,0.053029,94293.0,94290.0,0.05303]
[1732576418940,0.053029,94293.0,94289.0,0.002]
[1732576418941,0.053029,94293.0,94291.0,0.053029]
[1732576419450,0.053026,94298.0,94295.0,0.053027]
[1732576419645,0.3608,94305.0,94289.0,0.002]
[1732576419850,0.05303,94291.0,94289.0,0.002]
[1732576420553,0.05303,94291.0,94290.0,0.001]
[1732576421147,0.05303,94291.0,94290.0,0.002]
[1732576421353,0.0616634,94291.0,94290.0,0.01241921]
[1732576421541,0.0616634,94291.0,94290.0,0.01373505]
[1732576421742,0.0616634,94291.0,94289.0,2.1e-07]
[1732576422070,0.053048,94258.0,94257.0,0.0624]
[1732576422444,0.053048,94258.0,94256.0,5.957e-05]
[1732576423337,0.06149891,94258.0,94256.0,5.957e-05]
[1732576423738,0.67908,94257.0,94256.0,5.957e-05]
[1732576424337,0.67908,94257.0,94256.0,0.00105957]
[1732576424646,0.3608,94257.0,94256.0,0.00105957]
[1732576425150,0.06149891,94258.0,94256.0,0.00105957]
[1732576425449,0.053048,94258.0,94256.0,0.00205957]
[1732576427340,0.053048,94258.0,94256.0,0.00105957]
[1732576427652,0.053048,94258.0,94256.0,0.00205957]
[1732576429549,0.31828,94257.0,94256.0,0.00205957]
[1732576429748,0.37998,94257.0,94256.0,0.00205957]
[1732576430148,0.0617,94257.0,94256.0,0.00205957]
[1732576430349,0.37998,94257.0,94256.0,0.00205957]
[1732576430954,0.25266,94257.0,94256.0,0.00105957]
[1732576431251,0.25266,94257.0,94256.0,0.00205957]
[1732576431451,0.57094,94257.0,94256.0,0.00205957]
[1732576432347,0.25266,94257.0,94256.0,0.00205957]
[1732576433254,0.053048,94258.0,94256.0,0.00205957]
[1732576433760,0.001,94257.0,94256.0,0.00105957]
[1732576433942,0.001,94257.0,94256.0,0.00205957]
[1732576434146,0.008,94257.0,94256.0,0.00205957]
[1732576434556,0.008,94257.0,94256.0,5.957e-05]
[1732576434743,0.001,94257.0,94256.0,5.957e-05]
[1732576436454,0.005,94257.0,94256.0,5.957e-05]
[1732576437250,0.001,94257.0,94256.0,5.957e-05]
[1732576437457,0.008,94257.0,94256.0,0.00105957]
[1732576438157,0.32128,94257.0,94256.0,5.957e-05]
[1732576438355,0.32628,94257.0,94256.0,5.957e-05]
[1732576438863,0.008,94257.0,94256.0,5.957e-05]
[1732576439657,0.01,94257.0,94256.0,5.957e-05]
[1732576441760,0.012,94257.0,94256.0,0.00105957]
[1732576442656,0.008,94257.0,94256.0,0.00105957]
[1732576442859,0.002,94257.0,94256.0,5.957e-05]
[1732576443462,0.003,94257.0,94256.0,5.957e-05]
[1732576444263,0.09786832,94257.0,94256.0,0.36085957]
[1732576444565,0.16210128,94270.0,94256.0,0.86973957]
[1732576444756,0.053044,94265.0,94257.0,0.0594]
[1732576444959,0.053046,94262.0,94257.0,0.25]
[1732576445154,0.053046,94262.0,94257.0,0.0594]
[1732576445463,0.16210128,94270.0,94257.0,0.0594]
[1732576445662,0.3608,94267.0,94257.0,0.0594]
[1732576445964,0.053047,94260.0,94257.0,0.0594]
[1732576446467,0.053048,94259.0,94257.0,0.0594]
[1732576446864,0.413848,94259.0,94257.0,0.0604]
[1732576447068,0.413848,94259.0,94257.0,0.001]
[1732576447364,0.413848,94259.0,94257.0,0.002]
[1732576448261,0.3608,94259.0,94258.0,0.053048]
[1732576448455,0.053045,94264.0,94258.0,0.111148]
[1732576449275,0.46892387,94267.0,94258.0,0.0581]
[1732576449479,0.053045,94265.0,94258.0,0.0581]
[1732576449767,0.053045,94265.0,94258.0,0.0591]
[1732576450370,0.49937836,94267.0,94258.0,0.0591]
[1732576450571,0.47750612,94267.0,94263.0,0.053045]
[1732576450868,0.53054912,94267.0,94258.0,0.0601]
[1732576451366,0.10812387,94270.0,94266.0,0.3608]
[1732576451563,0.053042,94269.0,94267.0,0.0615]
[1732576452068,0.053042,94269.0,94268.0,0.0575]
[1732576452969,0.057042,94269.0,94268.0,0.0575]
[1732576453267,0.006,94269.0,94268.0,0.0575]
[1732576453478,0.002,94269.0,94268.0,0.0575]
[1732576453660,0.3608,94273.0,94268.0,0.0585]
[1732576453860,0.12706253,94280.0,94278.0,0.053037]
[1732576454168,0.00010075,94281.0,94280.0,0.053036]
[1732576454373,0.00010075,94281.0,94280.0,0.413836]
[1732576456259,0.00210075,94281.0,94280.0,0.413836]
[1732576456870,0.00710075,94281.0,94280.0,0.413836]
[1732576457173,0.00710075,94281.0,94280.0,0.473936]
[1732576458470,0.00510075,94281.0,94280.0,0.474936]
[1732576458865,0.00010075,94281.0,94280.0,0.474936]
[1732576459066,0.00010075,94281.0,94280.0,0.47499557]
[1732576459261,0.053025,94299.0,94280.0,0.79319557]
[1732576459467,0.06167471,94299.0,94293.0,0.053028]
[1732576459665,0.00130716,94296.0,94293.0,0.053028]
[1732576459969,0.053028,94295.0,94290.0,0.3608]
[1732576460170,0.053029,94292.0,94290.0,0.3608]
[1732576460779,0.00130716,94291.0,94290.0,0.3608]
[1732576462567,0.00330716,94291.0,94290.0,0.3608]
[1732576463181,0.00830716,94291.0,94290.0,0.3608]
[1732576463678,0.00830716,94291.0,94290.0,0.4177]
[1732576468272,0.00830716,94291.0,94290.0,0.3608]
[1732576469783,0.00830716,94291.0,94290.0,0.67896]
[1732576470279,0.00830716,94291.0,94290.0,0.86948]
[1732576470671,0.1167,94317.0,94291.0,0.053029]
[1732576470672,0.24376253,94317.0,94291.0,0.053029]
[1732576470880,0.24376253,94317.0,94307.0,0.3608]
[1732576470881,0.053017,94313.0,94307.0,0.3608]
[1732576471072,0.0555,94317.0,94315.0,0.053016]
[1732576471274,0.00877487,94323.0,94316.0,0.3608]
[1732576471483,0.05301,94326.0,94322.0,0.053012]
[1732576471678,0.053011,94324.0,94322.0,0.053012]
[1732576472878,0.00868915,94326.0,94322.0,0.001]
[1732576473084,0.10812387,94330.0,94322.0,0.001]
[1732576473085,0.10812387,94330.0,94326.0,0.05301]
[1732576473308,0.053007,94331.0,94326.0,0.05301]
[1732576474084,0.053008,94330.0,94324.0,0.3608]
[1732576474269,0.053008,94330.0,94326.0,0.05301]
[1732576474472,0.053008,94330.0,94326.0,0.05401]
[1732576475068,0.053008,94330.0,94326.0,0.05301]
[1732576475475,0.053008,94330.0,94326.0,0.05401]
[1732576476575,0.053008,94330.0,94326.0,0.05301]
[1732576477381,0.00848418,94331.0,94326.0,0.05301]
[1732576477578,0.00848418,94331.0,94326.0,0.05401]
[1732576477779,0.0545,94336.0,94326.0,0.05401]
[1732576478283,0.107505,94336.0,94326.0,0.05501]
[1732576478470,0.053005,94335.0,94326.0,0.05501]
[1732576478780,0.053008,94330.0,94326.0,0.05501]
[1732576479783,0.053008,94330.0,94326.0,0.05401]
[1732576480380,0.053008,94330.0,94326.0,0.05301]
[1732576481571,0.053008,94330.0,94326.0,0.05501]
[1732576481778,0.05308971,94328.0,94326.0,0.002]
[1732576481979,0.05308971,94328.0,94326.0,0.001]
[1732576482281,0.05308971,94328.0,94326.0,0.002]
[1732576483085,0.05308971,94328.0,94326.0,0.001]
[1732576483580,0.05308971,94328.0,94324.0,0.3608]
[1732576484879,0.05301,94327.0,94324.0,0.3628]
[1732576485274,0.05301,94326.0,94324.0,0.3628]
[1732576485884,0.05301,94326.0,94324.0,0.002]
[1732576487084,0.053021,94307.0,94306.0,0.3608]
[1732576488316,0.053023,94303.0,94299.0,0.19004]
[1732576488516,0.053023,94303.0,94300.0,0.0563395]
[1732576488701,0.10812387,94310.0,94295.0,0.5516]
[1732576488895,0.053023,94304.0,94296.0,0.05634249]
[1732576489209,0.053023,94303.0,94296.0,0.053027]
[1732576490103,0.053023,94303.0,94295.0,0.5516]
[1732576490405,0.05302,94308.0,94303.0,0.053023]
[1732576490598,0.0536,94313.0,94296.0,0.004]
[1732576490801,0.0536,94313.0,94296.0,0.057027]
[1732576491112,0.053021,94306.0,94300.0,0.053024]
[1732576491289,0.10812387,94310.0,94296.0,0.002]
[1732576491586,0.053023,94302.0,94295.0,0.5536]
[1732576491886,0.10812387,94310.0,94296.0,0.002]
[1732576491887,0.053025,94300.0,94296.0,0.002]
[1732576492189,0.053025,94300.0,94296.0,0.053027]
[1732576492990,0.0536,94313.0,94295.0,0.55564]
[1732576493192,0.053021,94306.0,94302.0,0.053023]
[1732576493495,0.053018,94312.0,94309.0,0.053019]
[1732576493787,0.053018,94312.0,94311.0,0.3608]
[1732576493989,0.053018,94312.0,94310.0,0.0559]
[1732576494288,0.053018,94312.0,94311.0,0.3608]
[1732576494988,0.053018,94312.0,94310.0,0.0559]
[1732576495294,0.053019,94310.0,94309.0,0.19004]
[1732576496782,0.053019,94310.0,94309.0,0.19204]
[1732576497686,0.053019,94310.0,94309.0,0.19404]
[1732576498184,0.053019,94310.0,94309.0,0.19204]
[1732576499690,0.053019,94310.0,94309.0,0.1953552]
[1732576500785,0.053019,94310.0,94309.0,0.19004]
[1732576501790,0.053019,94310.0,94306.0,0.053021]
[1732576501791,0.053022,94304.0,94303.0,0.3608]
[1732576502094,0.053029,94292.0,94284.0,0.24908041]
[1732576502295,0.053029,94292.0,94277.0,0.30977021]
[1732576502296,0.3608,94288.0,94277.0,0.24908041]
[1732576502601,0.3608,94288.0,94264.0,0.4733]
[1732576502602,0.053044,94265.0,94264.0,0.3608]
[1732576502891,0.053044,94265.0,94264.0,0.36084464]
[1732576503094,0.3608,94279.0,94264.0,0.36084464]
[1732576503694,0.053044,94266.0,94264.0,0.36084464]
[1732576503890,0.053044,94266.0,94264.0,4.464e-05]
[1732576504291,0.053044,94266.0,94264.0,0.00204464]
[1732576504995,0.3608,94271.0,94264.0,4.464e-05]
[1732576505183,0.053043,94268.0,94264.0,0.05308964]
[1732576505390,0.053043,94268.0,94264.0,0.05708964]
[1732576505896,0.053044,94266.0,94264.0,0.00404464]
[1732576506897,0.3608,94271.0,94264.0,0.00404464]
[1732576507501,0.3608,94271.0,94269.0,0.053042]
[1732576507694,0.053042,94270.0,94264.0,0.00404464]
[1732576507995,0.3608,94271.0,94264.0,0.00404464]
[1732576507996,0.053044,94266.0,94264.0,0.00404464]
[1732576508190,0.166,94265.0,94264.0,0.00404464]
[1732576508386,0.166,94265.0,94244.0,0.3608]
[1732576508387,0.48424,94265.0,94244.0,0.3608]
[1732576508589,0.3608,94257.0,94237.0,0.1896]
[1732576508793,0.053055,94247.0,94237.0,0.1896]
[1732576508995,0.10812387,94250.0,94242.0,0.3608]
[1732576509200,0.053057,94243.0,94241.0,0.3608]
[1732576509401,0.00331,94249.0,94244.0,0.002]
[1732576509591,0.053054,94248.0,94244.0,0.002]
[1732576509895,0.00331,94249.0,94244.0,0.002]
[1732576510194,0.053055,94246.0,94244.0,0.002]
[1732576510785,0.053055,94246.0,94244.0,0.004]
[1732576510985,0.053055,94246.0,94244.0,0.002]
[1732576511297,0.02021,94247.0,94244.0,0.002]
[1732576511595,0.02021,94247.0,94244.0,0.004]
[1732576511796,0.053055,94245.0,94244.0,0.004]
[1732576512593,0.053055,94245.0,94244.0,0.003]
[1732576513996,0.053055,94245.0,94244.0,0.002]
[1732576514299,0.053055,94245.0,94221.0,0.0582]
[1732576514300,0.001,94245.0,94224.0,0.3608]
[1732576514600,0.053063,94232.0,94224.0,0.3608]
[1732576514797,0.053063,94232.0,94222.0,0.1896]
[1732576514997,0.3608,94239.0,94224.0,0.3608]
[1732576515191,0.053064,94230.0,94222.0,0.1896]
[1732576515389,0.053064,94230.0,94224.0,0.3608]
[1732576515597,0.053065,94228.0,94227.0,0.0059]
[1732576515892,0.413865,94228.0,94227.0,0.0059]
[1732576516589,0.413865,94228.0,94227.0,0.002]
[1732576516891,0.413865,94228.0,94227.0,0.004]
[1732576517201,0.036,94218.0,94182.0,0.3608]
[1732576517502,0.036,94218.0,94174.0,0.3608]
[1732576517503,0.053095,94176.0,94174.0,0.3608]
[1732576517693,0.053099,94167.0,94160.0,0.3608]
[1732576517893,0.053099,94167.0,94163.0,0.00851295]
[1732576518313,0.3186,94166.0,94128.0,0.24908041]
[1732576518500,0.3186,94166.0,94127.0,0.3608]
[1732576518501,0.053114,94141.0,94140.0,0.01621412]
[1732576518689,0.16268541,94150.0,94145.0,0.053112]
[1732576518894,0.16268541,94150.0,94140.0,0.37701412]
[1732576518895,0.053112,94145.0,94140.0,0.01621412]
[1732576519400,0.16268541,94150.0,94139.0,0.3608]
[1732576519601,0.3608,94158.0,94139.0,0.3608]
[1732576519999,0.3588,94158.0,94139.0,0.3608]
[1732576520496,0.3588,94158.0,94144.0,0.053112]
[1732576520701,0.3608,94166.0,94157.0,0.3608]
[1732576521090,0.01,94202.0,94157.0,0.3608]
[1732576521091,0.3608,94191.0,94166.0,0.053099]
[1732576521295,0.00879354,94195.0,94183.0,0.3608]
[1732576521596,9.078e-05,94195.0,94183.0,0.3608]
[1732576521902,0.3608,94189.0,94179.0,0.053093]
[1732576522102,0.3608,94189.0,94175.0,0.3608]
[1732576523103,0.3608,94189.0,94183.0,0.001]
[1732576523696,0.3608,94189.0,94175.0,0.414895]
[1732576523895,0.3608,94189.0,94175.0,0.415895]
[1732576524103,0.3608,94189.0,94175.0,0.3628]
[1732576524308,0.02124668,94185.0,94183.0,0.001]
[1732576526004,0.02124668,94185.0,94167.0,0.053099]
[1732576526300,0.3608,94179.0,94176.0,0.053094]
[1732576526900,0.3608,94179.0,94168.0,0.053099]
[1732576527100,0.3608,94179.0,94166.0,0.18972]
[1732576527307,0.36953278,94179.0,94167.0,0.002]
[1732576527601,0.36953278,94179.0,94174.0,0.053095]
[1732576527900,0.36953278,94179.0,94168.0,0.001]
[1732576528292,0.36953278,94179.0,94173.0,0.053096]
[1732576529002,0.00331,94178.0,94173.0,0.053096]
[1732576529495,0.00331,94178.0,94167.0,0.002]
[1732576529695,0.16268541,94177.0,94167.0,0.002]
[1732576529899,0.053096,94173.0,94167.0,0.001]
[1732576530103,0.16268541,94177.0,94171.0,0.053097]
[1732576530301,0.16268541,94177.0,94173.0,0.001]
[1732576530602,0.00331,94178.0,94177.0,0.053094]
[1732576530797,0.00331,94178.0,94177.0,0.032874]
[1732576531302,0.3608,94189.0,94188.0,0.053088]
[1732576531506,0.36958362,94189.0,94188.0,0.053088]
[1732576532797,0.36958362,94189.0,94176.0,0.0541]
[1732576532998,0.37558362,94189.0,94188.0,0.001]
[1732576533204,0.39683164,94189.0,94188.0,0.001]
[1732576534006,0.053088,94188.0,94181.0,0.053091]
[1732576534201,0.39083164,94189.0,94176.0,0.4169]
[1732576534202,0.39083164,94189.0,94182.0,0.053091]
[1732576534711,0.00762,94187.0,94185.0,0.053089]
[1732576535607,0.00762,94187.0,94165.0,0.4139]
[1732576535608,0.00762,94187.0,94177.0,0.3608]
[1732576535814,0.3608,94179.0,94165.0,0.3608]
[1732576536003,0.16268541,94176.0,94165.0,0.3608]
[1732576536204,0.0531,94167.0,94165.0,0.3608]
[1732576536608,0.6794,94166.0,94145.0,0.053111]
[1732576536811,0.16268541,94155.0,94145.0,0.053111]
[1732576537509,0.16268541,94155.0,94141.0,0.3608]
[1732576538010,0.053111,94146.0,94140.0,0.053114]
[1732576538212,0.053111,94146.0,94141.0,0.00981613]
[1732576538407,0.053111,94146.0,94136.0,0.24376]
[1732576538408,0.053111,94146.0,94140.0,0.053115]
[1732576538608,0.053112,94145.0,94140.0,0.053115]
[1732576538914,0.16268541,94155.0,94136.0,0.25231406]
[1732576539207,0.16268541,94155.0,94137.0,0.00981812]
[1732576539415,0.05311,94148.0,94143.0,0.053113]
[1732576539718,0.05311,94148.0,94136.0,0.25231406]
[1732576539719,0.053111,94147.0,94145.0,0.001]
[1732576540215,0.053111,94147.0,94146.0,0.02642693]
[1732576540605,0.053109,94151.0,94146.0,0.02642693]
[1732576540804,0.06485447,94155.0,94137.0,0.002]
[1732576540805,0.06485447,94155.0,94147.0,0.02642693]
[1732576541006,0.053107,94154.0,94148.0,0.01016398]
[1732576541311,0.053107,94154.0,94139.0,0.053115]
[1732576541312,0.053109,94150.0,94149.0,0.02655732]
[1732576541917,0.053109,94150.0,94149.0,0.01016398]
[1732576542107,0.053109,94150.0,94149.0,0.02656805]
[1732576542303,0.06485447,94155.0,94146.0,0.001]
[1732576542304,0.053111,94147.0,94146.0,0.001]
[1732576543114,0.053111,94147.0,94123.0,0.053124]
[1732576543307,0.053119,94132.0,94125.0,0.053123]
[1732576543610,0.16268541,94133.0,94125.0,0.053123]
[1732576543611,0.05312,94130.0,94125.0,0.053123]
[1732576543911,0.16268541,94133.0,94125.0,0.053123]
[1732576544107,0.053121,94128.0,94125.0,0.053123]
[1732576544411,0.16268541,94133.0,94123.0,0.001]
[1732576544616,0.16268541,94133.0,94128.0,0.053121]
[1732576544808,0.21580441,94133.0,94128.0,0.053121]
[1732576545416,0.053119,94132.0,94128.0,0.053121]
[1732576545713,0.053121,94129.0,94125.0,0.001]
[1732576545912,0.053121,94129.0,94125.0,0.054123]
[1732576546113,0.053121,94129.0,94126.0,0.053122]
[1732576547514,0.053121,94129.0,94126.0,0.055122]
[1732576548807,0.1714366,94133.0,94126.0,0.055122]
[1732576548808,0.053122,94128.0,94126.0,0.002]
[1732576549812,0.053122,94128.0,94126.0,0.001]
[1732576550013,0.053122,94128.0,94126.0,0.002]
[1732576552510,0.00598,94130.0,94126.0,0.002]
[1732576552716,0.00598,94130.0,94129.0,0.053121]
[1732576553117,0.00875119,94133.0,94130.0,0.05312]
[1732576553423,0.053121,94128.0,94126.0,0.002]
[1732576554119,0.00763,94127.0,94126.0,0.001]
[1732576554525,0.12123,94127.0,94126.0,0.001]
[1732576555117,0.053123,94125.0,94110.0,0.053131]
[1732576555332,0.10844047,94120.0,94111.0,0.05313]
[1732576555847,0.10844047,94120.0,94098.0,0.0551]
[1732576555848,0.053152,94074.0,94057.0,0.49811538]
[1732576556036,0.053152,94074.0,94050.0,0.55740085]
[1732576556037,0.3608,94058.0,94050.0,0.49071555]
[1732576556216,0.72979944,94051.0,94045.0,0.09318569]
[1732576556529,0.01,94033.0,94032.0,0.18944]
[1732576556728,0.1122,94033.0,94032.0,0.18944]
[1732576557026,0.10497094,94033.0,94032.0,0.04808617]
[1732576557222,0.3574004,94033.0,94030.0,0.053176]
[1732576557530,0.3574004,94032.0,94031.0,0.18944]
[1732576557720,0.3574004,94032.0,94030.0,0.053177]
[1732576557921,0.28440772,94037.0,94031.0,0.50848]
[1732576558128,0.05635068,94032.0,94031.0,0.18944]
[1732576558527,0.29998577,94032.0,94031.0,0.50848]
[1732576558720,0.29998577,94032.0,94031.0,0.76552]
[1732576559029,0.29998577,94032.0,94031.0,0.95496]
[1732576559420,0.29998577,94032.0,94031.0,1.008136]
[1732576559621,0.30598577,94032.0,94031.0,1.009136]
[1732576559933,0.53036119,94032.0,94031.0,0.819696]
[1732576560230,0.06635068,94032.0,94031.0,1.008216]
[1732576560532,0.06635068,94032.0,94021.0,0.053181]
[1732576560837,0.05635068,94031.0,94025.0,0.053179]
[1732576561131,0.05635068,94030.0,94026.0,0.4466]
[1732576561330,0.05635068,94029.0,94026.0,0.4466]
[1732576561629,0.008,94032.0,94027.0,0.63612]
[1732576561818,0.05930225,94031.0,94027.0,0.63612]
[1732576562021,0.05930225,94030.0,94028.0,0.18952]
[1732576562217,0.05930225,94029.0,94028.0,0.18952]
[1732576562720,0.05930225,94029.0,94028.0,0.31904]
[1732576563029,0.06030225,94029.0,94028.0,0.19052]
[1732576563216,0.42110225,94029.0,94028.0,0.19052]
[1732576563528,0.42110225,94029.0,94028.0,0.50956]
[1732576564026,0.42110225,94029.0,94028.0,0.31904]